bitfinex-derivatives/quotes_ETHF0:USTF0_20240923
["timestamp","ask_amount","ask_price","bid_price","bid_amount"]
[1727057396743,0.38172,2619.6,2619.1,2.47178]
[1727057396948,0.5184,2619.5,2619.1,2.47178]
[1727057397144,0.5184,2619.5,2619.1,2.09]
[1727057397355,0.5184,2619.5,2619.3,2.47175]
[1727057397550,0.5184,2619.5,2619.3,2.09]
[1727057397959,0.5184,2619.5,2619.3,2.47176]
[1727057398352,0.5184,2619.5,2619.3,2.09]
[1727057399157,0.5184,2619.5,2619.3,2.47176]
[1727057399657,0.5184,2619.5,2619.3,2.09]
[1727057399857,0.5184,2619.5,2619.3,2.47175]
[1727057400451,3.58941,2620.4,2619.8,0.38168]
[1727057400662,3.58941,2620.4,2619.7,0.38169]
[1727057400663,0.5454,2620.1,2619.7,0.38169]
[1727057400868,0.5454,2620.1,2619.6,2.4717]
[1727057401857,0.5454,2620.1,2619.7,0.3817]
[1727057402154,0.5454,2620.1,2619.7,0.38169]
[1727057402361,0.5454,2620.1,2619.6,2.09]
[1727057402362,0.5454,2620.1,2619.6,2.4717]
[1727057402757,0.5454,2620.1,2619.7,0.3817]
[1727057403062,0.5556,2620.3,2619.9,2.09]
[1727057403258,0.5556,2620.3,2620.0,2.09]
[1727057403451,0.38163,2620.2,2619.6,1.1015]
[1727057403658,3.2078,2620.0,2619.4,3.2078]
[1727057403861,3.2078,2620.0,2618.6,2.54243425]
[1727057403862,0.38174,2619.5,2619.0,2.09]
[1727057404058,1.6123,2619.4,2619.0,2.09]
[1727057404259,1.99404,2619.4,2619.0,2.09]
[1727057404467,1.6123,2619.4,2619.0,2.09]
[1727057404656,1.6123,2619.4,2618.3,3.2078]
[1727057404657,0.95446,2619.2,2618.3,3.2078]
[1727057404967,0.95446,2619.2,2618.3,5.2978]
[1727057404968,3.2078,2619.0,2618.3,5.2978]
[1727057405158,3.58961,2619.0,2618.5,2.09]
[1727057405359,3.2078,2619.3,2618.5,2.09]
[1727057405560,0.3818,2619.1,2618.5,2.09]
[1727057405759,0.3818,2619.0,2618.5,2.09]
[1727057405957,0.38182,2618.9,2618.5,2.09]
[1727057406267,0.5543,2618.8,2618.5,2.09]
[1727057406471,1.0921,2618.8,2618.5,2.09]
[1727057409266,1.47393,2618.8,2618.5,2.09]
[1727057409464,1.6496,2618.8,2618.5,2.09]
[1727057409768,1.6496,2618.8,2618.1,2.47192]
[1727057409958,0.38185,2618.7,2618.1,2.47192]
[1727057410458,3.58965,2618.7,2618.1,2.47192]
[1727057410654,3.58965,2618.7,2618.3,2.09]
[1727057410854,0.38187,2618.6,2618.3,2.09]
[1727057411065,0.38188,2618.5,2618.1,2.09]
[1727057411462,0.38189,2618.4,2618.1,2.09]
[1727057411665,3.2078,2618.7,2618.1,2.09]
[1727057411859,0.38192,2618.2,2617.9,2.09]
[1727057412056,0.5608,2618.1,2617.9,2.09]
[1727057414668,0.5608,2618.1,2617.7,2.09]
[1727057415074,0.5608,2618.1,2617.9,2.09]
[1727057418070,0.94274,2618.1,2617.9,2.09]
[1727057418371,0.94274,2618.1,2617.6,5.2978]
[1727057418560,0.38195,2618.0,2617.6,5.2978]
[1727057418762,0.5608,2618.1,2617.6,5.2978]
[1727057419066,0.38197,2617.9,2617.6,5.2978]
[1727057419477,0.38196,2618.0,2617.6,5.2978]
[1727057419666,0.38197,2617.9,2617.6,5.2978]
[1727057422262,0.5253,2618.0,2617.6,5.2978]
[1727057422461,0.5608,2618.1,2617.9,2.09]
[1727057422864,0.51712472,2618.9,2618.3,0.38189]
[1727057423063,0.38188,2618.5,2618.3,2.09]
[1727057423268,1.51375,2618.7,2618.1,2.09]
[1727057423472,1.51375,2618.7,2617.9,2.09]
[1727057423473,0.3819,2618.3,2617.9,2.09]
[1727057423771,3.2078,2618.4,2617.9,2.09]
[1727057423772,0.5591,2618.2,2617.9,2.09]
[1727057424074,0.38195,2618.0,2617.7,2.64]
[1727057424463,3.7237,2618.1,2617.7,2.64]
[1727057425267,4.10564,2618.1,2617.7,2.64]
[1727057425763,0.38195,2618.0,2617.7,2.64]
[1727057425965,4.10564,2618.1,2617.7,2.64]
[1727057426160,3.7237,2618.1,2617.7,3.02199]
[1727057426365,3.7237,2618.1,2617.7,2.64]
[1727057426689,4.10563,2618.1,2617.7,2.64]
[1727057426866,0.38195,2618.0,2617.7,2.64]
[1727057427164,3.7237,2618.1,2617.5,3.1585]
[1727057427370,0.38198,2617.8,2617.5,3.1585]
[1727057427569,0.38197,2617.9,2617.5,3.1585]
[1727057428268,0.38198,2617.8,2617.5,3.1585]
[1727057429071,0.38197,2617.9,2617.5,3.1585]
[1727057429259,3.2078,2618.1,2617.5,3.1585]
[1727057429464,3.2078,2618.1,2617.7,2.47198]
[1727057429659,3.58974,2618.1,2617.9,2.09]
[1727057429968,3.2078,2618.1,2617.9,2.09]
[1727057430272,3.2078,2618.1,2618.0,0.38195]
[1727057430469,3.2078,2618.4,2618.0,4.9209]
[1727057430677,3.2078,2618.4,2618.2,2.09]
[1727057431069,3.2078,2618.4,2618.1,0.568]
[1727057432568,0.5458,2618.5,2618.1,0.94993]
[1727057432764,0.5458,2618.5,2618.1,0.568]
[1727057433677,0.5458,2618.5,2618.1,0.94993]
[1727057434672,3.7503,2618.7,2618.3,2.47189]
[1727057435070,3.7503,2618.7,2618.3,2.09]
[1727057435569,3.7503,2618.7,2618.3,2.47189]
[1727057435764,3.7503,2618.7,2618.5,2.09]
[1727057435973,3.2078,2618.7,2618.5,2.47187]
[1727057436179,3.2078,2618.7,2618.5,2.09]
[1727057436777,3.2078,2618.7,2618.5,2.47187]
[1727057437679,3.2078,2618.7,2618.5,2.09]
[1727057437980,0.38172,2619.6,2619.1,0.38179]
[1727057438198,0.9055,2619.7,2619.2,2.09]
[1727057438477,3.2078,2619.6,2619.2,2.09]
[1727057439273,3.2078,2619.6,2619.0,2.09]
[1727057439476,3.58952,2619.6,2618.7,2.09]
[1727057439678,0.38173,2619.5,2619.0,2.09]
[1727057440675,0.38174,2619.4,2619.0,2.09]
[1727057440877,0.38174,2619.5,2619.0,2.09]
[1727057441072,3.58952,2619.6,2619.0,2.47179]
[1727057441272,0.5238,2619.7,2619.3,0.38175]
[1727057441474,0.5693,2619.9,2619.5,2.09]
[1727057441780,0.5693,2619.9,2619.7,0.38169]
[1727057441975,0.5693,2619.9,2619.7,0.3817]
[1727057442282,0.95395,2620.6,2619.7,0.3817]
[1727057442283,9.4248,2620.8,2619.8,11.7909178]
[1727057442480,0.5265,2620.4,2620.0,2.09]
[1727057443169,0.5265,2620.4,2620.1,0.38164]
[1727057443480,0.5265,2620.4,2620.0,2.47165]
[1727057443680,0.5265,2620.4,2620.0,2.09]
[1727057443882,0.5265,2620.4,2619.8,2.6524]
[1727057444084,0.5265,2620.4,2619.8,2.09]
[1727057444275,0.90811,2620.4,2619.8,2.09]
[1727057444579,0.9081,2620.4,2619.8,2.47168]
[1727057444779,0.9081,2620.4,2620.0,2.09]
[1727057444780,0.5265,2620.4,2620.0,2.09]
[1727057445185,0.5265,2620.4,2620.0,2.47165]
[1727057445483,0.5265,2620.4,2620.1,0.38164]
[1727057445676,0.5265,2620.4,2620.0,2.47165]
[1727057446071,0.5265,2620.4,2620.1,0.38164]
[1727057446381,0.5265,2620.4,2620.1,2.09]
[1727057446770,0.5265,2620.4,2620.1,2.47164]
[1727057446977,0.5265,2620.4,2620.1,2.09]
[1727057447584,0.5265,2620.4,2620.1,2.47163]
[1727057447776,0.5265,2620.4,2620.1,2.09]
[1727057448177,0.5265,2620.4,2619.7,3.2078]
[1727057448377,0.5265,2620.4,2619.8,0.38167]
[1727057448684,0.5265,2620.4,2620.0,0.38165]
[1727057449279,0.5265,2620.4,2620.1,2.09]
[1727057450079,0.5265,2620.4,2619.7,3.2078]
[1727057450080,0.38162,2620.3,2619.7,3.2078]
[1727057450384,0.5676,2620.2,2619.7,3.58949]
[1727057450580,0.5676,2620.2,2619.7,3.2078]
[1727057451477,0.5676,2620.2,2619.7,3.58949]
[1727057451682,0.94924,2620.2,2619.7,3.2078]
[1727057451885,0.5437,2620.1,2619.7,3.2078]
[1727057452990,0.92534,2620.1,2619.7,3.2078]
[1727057453285,0.5437,2620.1,2619.4,2.09]
[1727057453478,0.5437,2620.1,2619.7,2.4717]
[1727057454291,0.5437,2620.1,2619.7,2.09]
[1727057454586,0.5437,2620.1,2619.7,2.4717]
[1727057455585,3.7754,2620.2,2619.7,2.4717]
[1727057455586,0.5676,2620.2,2619.7,2.4717]
[1727057455977,0.5676,2620.2,2619.7,2.09]
[1727057456291,0.5676,2620.2,2619.8,0.38168]
[1727057456589,0.5676,2620.2,2619.9,2.47167]
[1727057456785,0.5676,2620.2,2619.9,2.09]
[1727057456987,1.0893,2620.4,2619.9,2.09]
[1727057457182,1.0893,2620.4,2620.1,2.09]
[1727057457490,4.2971,2620.4,2620.1,2.09]
[1727057457686,1.0893,2620.4,2620.1,2.09]
[1727057458079,4.2971,2620.4,2620.1,2.09]
[1727057458589,0.5265,2620.4,2620.1,2.47164]
[1727057458984,0.5265,2620.4,2620.1,2.09]
[1727057459185,0.5265,2620.4,2620.1,2.47164]
[1727057459586,0.5265,2620.4,2620.1,2.09]
[1727057460386,4.50857,2620.6,2620.1,2.09]
[1727057460595,0.5421,2620.8,2620.4,2.09]
[1727057460795,0.5421,2620.8,2620.6,2.47156]
[1727057461094,0.5421,2620.8,2620.6,2.09]
[1727057461295,0.5421,2620.8,2620.6,2.47157]
[1727057461492,0.5421,2620.8,2620.7,0.38155]
[1727057461691,0.5421,2620.8,2620.6,2.47156]
[1727057461887,0.5421,2620.8,2620.6,2.09]
[1727057462496,0.5421,2620.8,2620.2,3.2078]
[1727057462497,0.38156,2620.7,2620.2,3.2078]
[1727057462695,0.5349,2620.6,2620.2,3.2078]
[1727057462895,0.5349,2620.6,2620.3,0.38161]
[1727057463309,0.5349,2620.6,2620.3,0.3816]
[1727057463906,0.5421,2620.8,2620.3,0.3816]
[1727057464097,0.92364,2620.8,2620.2,5.67942]
[1727057464893,0.5421,2620.8,2620.2,5.2978]
[1727057465100,0.5421,2620.8,2620.3,0.38161]
[1727057465392,0.5421,2620.8,2620.2,5.2978]
[1727057465603,0.5421,2620.8,2620.4,0.38159]
[1727057466002,0.5421,2620.8,2620.3,0.3816]
[1727057466204,0.5421,2620.8,2620.2,5.2978]
[1727057466398,0.5421,2620.8,2620.3,0.5575]
[1727057466704,0.5421,2620.8,2620.4,2.646]
[1727057466905,0.5421,2620.8,2620.7,0.38155]
[1727057467398,0.5421,2620.8,2620.4,3.1812]
[1727057467598,0.5421,2620.8,2620.4,3.56279]
[1727057467907,0.38156,2620.7,2620.2,2.09]
[1727057468109,0.96256,2620.7,2620.2,2.09]
[1727057468500,3.2078,2620.5,2619.9,3.2078]
[1727057468707,0.38163,2620.2,2619.9,3.2078]
[1727057468903,0.5553,2620.1,2619.9,3.2078]
[1727057469513,0.5553,2620.1,2620.0,2.47166]
[1727057469708,0.5553,2620.1,2620.0,2.09]
[1727057469911,0.5697,2620.4,2620.0,2.09]
[1727057470108,1.4862,2620.4,2620.0,2.09]
[1727057470412,0.38161,2620.3,2620.0,2.09]
[1727057470611,0.38167,2620.0,2619.6,3.2078]
[1727057470810,1.0859,2619.9,2619.6,3.2078]
[1727057472508,1.46757,2619.9,2619.6,3.2078]
[1727057472911,1.0859,2619.9,2619.6,3.2078]
[1727057474713,1.0859,2619.9,2619.5,5.2978]
[1727057474911,0.38172,2619.6,2619.1,2.09]
[1727057475212,1.0859,2619.9,2619.2,0.38177]
[1727057475213,3.2078,2619.5,2619.2,0.38177]
[1727057475415,3.2078,2619.5,2619.1,2.47178]
[1727057475920,1.1545,2619.4,2619.1,2.47178]
[1727057476117,1.1545,2619.4,2619.1,2.09]
[1727057476714,1.53625,2619.4,2619.1,2.09]
[1727057476918,1.53625,2619.4,2619.0,3.2078]
[1727057477217,1.1545,2619.4,2619.1,2.09]
[1727057477416,0.5673,2619.4,2619.3,2.09]
[1727057478111,0.5673,2619.4,2619.1,2.09]
[1727057478511,0.5673,2619.4,2619.1,2.47179]
[1727057480314,0.5673,2619.4,2619.1,2.09]
[1727057480709,0.5673,2619.4,2619.1,2.47178]
[1727057480910,0.5673,2619.4,2619.1,2.09]
[1727057482414,0.5673,2619.4,2619.1,2.47178]
[1727057482617,3.2078,2620.1,2619.3,5.2978]
[1727057482816,3.2078,2620.1,2619.7,2.09]
[1727057483014,2.07662,2620.3,2619.7,2.09]
[1727057483318,1.695,2620.3,2619.9,2.09]
[1727057483713,2.07661,2620.3,2619.9,2.09]
[1727057484918,2.07661,2620.3,2619.9,2.47167]
[1727057485320,2.07661,2620.3,2619.9,2.09]
[1727057485518,1.695,2620.3,2619.6,6.28967696]
[1727057485719,0.38165,2620.1,2619.6,5.2978]
[1727057485923,0.38165,2620.1,2619.7,0.3817]
[1727057486220,3.2078,2620.2,2619.9,2.47166]
[1727057487118,3.2078,2620.2,2619.6,4.19967696]
[1727057487119,3.2078,2620.2,2620.1,2.47164]
[1727057487315,3.2078,2620.2,2620.1,2.09]
[1727057487514,3.2078,2620.2,2620.1,2.47164]
[1727057487720,3.2078,2620.2,2620.1,6.28844]
[1727057488423,3.2078,2620.2,2620.1,2.47164]
[1727057488630,3.2078,2620.2,2620.1,6.28844]
[1727057488920,3.2078,2620.2,2620.1,2.47164]
[1727057489316,3.2078,2620.2,2620.1,6.28844]
[1727057489524,3.2078,2620.8,2620.1,16.4288483]
[1727057489822,0.95366,2621.4,2620.1,16.4288483]
[1727057489823,4.17472,2621.0,2620.5,2.09]
[1727057490026,3.7932,2621.0,2620.5,2.09]
[1727057490524,0.38154,2620.8,2620.3,2.09]
[1727057490827,3.2078,2620.7,2620.3,2.47161]
[1727057491020,3.2078,2620.7,2620.3,3.07776047]
[1727057491323,0.5854,2621.0,2620.6,2.47156]
[1727057491925,0.96691,2621.0,2620.6,2.09]
[1727057492221,0.96692,2621.0,2620.6,2.09]
[1727057492419,0.38153,2620.9,2620.6,2.09]
[1727057493634,0.03645602,2620.8,2620.6,2.09]
[1727057494724,0.03645602,2620.7,2620.6,2.09]
[1727057496627,0.03645602,2620.7,2620.6,2.47157]
[1727057496832,0.03645602,2620.7,2620.6,2.09]
[1727057497025,0.03645602,2620.7,2620.6,2.47157]
[1727057497222,0.03645602,2620.7,2620.6,2.09]
[1727057497627,0.03645602,2620.7,2620.4,3.2078]
[1727057497628,0.07291055,2620.7,2620.4,3.2078]
[1727057497830,0.07291055,2620.7,2620.4,0.3816]
[1727057498428,0.07291055,2620.7,2620.3,2.09]
[1727057498623,0.07291055,2620.7,2620.3,2.4716]
[1727057498830,0.07291055,2620.5,2620.4,0.3816]
[1727057499334,0.07291055,2620.5,2620.3,2.09]
[1727057499524,0.07291055,2620.5,2620.4,0.3816]
[1727057500125,0.07291055,2620.5,2620.4,4.1976]
[1727057500345,4.47062933,2622.3,2620.4,8.16]
[1727057500346,2.99950471,2621.9,2620.4,8.16]
[1727057500521,4.47062933,2622.3,2620.4,8.16]
[1727057500522,0.38121,2623.1,2622.2,0.38134]
[1727057500726,3.28071055,2623.1,2622.9,2.09]
[1727057500926,3.28071055,2623.0,2622.9,2.09]
[1727057501129,3.28071055,2623.0,2622.1,3.07440214]
[1727057501130,3.66194055,2623.0,2622.4,2.09]
[1727057501335,3.28071055,2622.7,2622.6,2.09]
[1727057504037,3.28071055,2622.7,2622.5,3.2078]
[1727057504335,1.1292,2622.9,2622.5,3.2078]
[1727057504336,3.28071055,2622.6,2622.5,3.2078]
[1727057505639,3.28071055,2622.6,2622.5,3.58909]
[1727057505939,3.28071055,2622.6,2622.5,3.2078]
[1727057506838,3.28071055,2622.6,2622.5,3.58909]
[1727057507834,3.28071055,2622.6,2622.5,3.2078]
[1727057508034,3.28071055,2622.6,2622.5,3.58909]
[1727057508233,3.28071055,2622.6,2622.5,3.2078]
[1727057508640,2.0,2622.5,2622.4,0.3813]
[1727057508938,5.28071055,2622.5,2622.4,0.3813]
[1727057509627,1.6187,2622.4,2622.3,2.09]
[1727057509830,4.89941055,2622.4,2622.3,2.47132]
[1727057510637,3.28071055,2622.4,2622.3,2.47132]
[1727057510839,3.28071055,2622.4,2622.3,0.85262]
[1727057511041,0.92665,2622.8,2622.4,0.38131]
[1727057511244,3.28071055,2622.4,2622.3,0.85261]
[1727057511935,1.1292,2622.9,2622.7,0.38126]
[1727057512135,0.38126,2622.8,2622.5,5.2978]
[1727057512436,1.1292,2622.9,2622.5,5.2978]
[1727057512740,3.28071055,2622.6,2622.5,5.2978]
[1727057512940,3.28071055,2622.6,2622.5,2.09]
[1727057516442,3.28071055,2622.6,2622.3,2.09]
[1727057516636,3.28071055,2622.4,2622.3,2.09]
[1727057516844,3.28071055,2622.4,2622.3,2.47132]
[1727057517342,3.28071055,2622.4,2622.3,2.09]
[1727057520742,3.84291055,2622.4,2622.3,2.47132]
[1727057520939,0.5543,2622.9,2622.3,8.09]
[1727057520940,1.1427,2622.9,2622.3,8.09]
[1727057521131,3.28071055,2622.7,2622.6,5.67908]
[1727057521943,3.58895,2623.5,2623.0,0.38121]
[1727057522142,1.6604,2623.4,2623.0,5.67901]
[1727057522339,3.28071055,2623.1,2623.0,5.67901]
[1727057522736,1.6604,2623.4,2623.0,5.2978]
[1727057522737,1.1027,2623.4,2623.0,5.2978]
[1727057522940,1.1027,2623.4,2623.3,2.09]
[1727057522941,3.82121055,2623.4,2623.3,2.09]
[1727057523145,3.28071055,2623.4,2623.3,2.09]
[1727057523448,0.13671754,2624.7,2624.0,0.95269]
[1727057523659,0.5577,2626.0,2624.6,5.2978]
[1727057523946,3.28071055,2625.6,2625.3,2.09]
[1727057524149,41.75173,2626.7,2625.1,3.2078]
[1727057524150,3.2078,2626.5,2625.5,5.2978]
[1727057524343,0.13942278,2626.6,2626.1,3.2078]
[1727057524546,3.2078,2626.4,2625.5,3.2078]
[1727057524744,2.09,2626.5,2625.2,2.09]
[1727057524745,3.28071055,2625.5,2625.2,2.09]
[1727057525040,3.2078,2626.1,2625.3,3.8088]
[1727057525240,3.30146619,2626.0,2625.4,5.67866]
[1727057525545,3.30146619,2625.9,2625.7,2.09]
[1727057525747,2.09,2626.2,2625.4,3.2078]
[1727057526049,3.30146619,2625.5,2625.1,2.09]
[1727057526249,3.30146619,2625.4,2625.1,2.09]
[1727057526450,3.30146619,2625.4,2625.2,8.04058639]
[1727057526652,3.30146619,2625.3,2625.2,8.04058639]
[1727057526953,3.30146619,2625.5,2625.2,8.04058639]
[1727057527455,3.30146619,2625.3,2625.1,2.09]
[1727057527750,3.30146619,2625.2,2625.1,2.09]
[1727057528152,0.5861,2625.7,2625.1,2.09]
[1727057528355,3.30146619,2625.4,2625.0,3.58872]
[1727057528647,3.30146619,2625.4,2625.0,3.2078]
[1727057528951,3.30146619,2625.1,2625.0,3.2078]
[1727057529647,3.30146619,2625.1,2624.7,3.2078]
[1727057529841,3.30146619,2624.8,2624.7,3.2078]
[1727057530045,3.30146619,2624.8,2624.4,3.2078]
[1727057530255,3.30146619,2624.8,2624.4,3.5888]
[1727057530641,3.30146619,2624.8,2624.4,3.2078]
[1727057530844,3.30146619,2624.6,2624.4,3.2078]
[1727057531150,3.30146619,2624.7,2624.4,3.2078]
[1727057532352,3.30146619,2624.7,2624.5,0.381]
[1727057532546,3.30146619,2624.7,2624.4,3.58881]
[1727057532857,0.3809,2625.2,2624.4,3.58881]
[1727057533053,3.30146619,2624.8,2624.4,3.2078]
[1727057533348,3.30146619,2624.7,2624.4,3.2078]
[1727057535154,3.30146619,2624.5,2624.4,3.2078]
[1727057536453,3.30146619,2624.5,2624.0,3.2078]
[1727057536650,0.38105,2624.2,2624.0,3.2078]
[1727057536956,3.2078,2624.6,2623.3,4.802]
[1727057536957,3.87876619,2624.1,2623.5,3.2078]
[1727057537259,3.30146619,2623.5,2623.3,6.14897]
[1727057537651,3.30146619,2623.5,2623.3,5.7678]
[1727057538053,3.30146619,2623.4,2623.0,5.7678]
[1727057538260,3.30146619,2623.2,2623.0,5.7678]
[1727057538450,3.30146619,2623.2,2623.0,13.61669718]
[1727057538757,3.30146619,2623.1,2623.0,5.7678]
[1727057539471,0.38111,2623.8,2623.0,11.7678]
[1727057539665,3.30146619,2623.3,2623.0,6.14901]
[1727057539856,3.30146619,2623.1,2623.0,5.7678]
[1727057540450,0.38111,2623.8,2623.0,15.96101]
[1727057540653,3.30146619,2623.4,2623.0,5.7678]
[1727057540849,3.30146619,2623.4,2623.0,6.14902]
[1727057541056,3.30146619,2623.3,2623.1,0.3812]
[1727057541255,3.30146619,2623.4,2623.0,5.7678]
[1727057541453,3.30146619,2623.4,2623.2,0.38118]
[1727057542055,3.30146619,2623.4,2623.0,6.14901]
[1727057542248,3.30146619,2623.3,2623.1,0.3812]
[1727057542453,3.30146619,2623.2,2623.0,5.7678]
[1727057542657,3.2078,2624.0,2623.0,5.7678]
[1727057542658,2.72944498,2623.1,2623.0,5.7678]
[1727057543549,2.72944498,2623.1,2623.0,6.14902]
[1727057544063,2.72944498,2623.1,2623.0,5.7678]
[1727057544257,2.72944498,2623.1,2623.0,6.14902]
[1727057545956,4.1605,2624.0,2623.0,11.7678]
[1727057545957,0.38108,2624.0,2623.0,11.7678]
[1727057546164,2.72944498,2623.4,2623.3,3.58897]
[1727057546364,1.1257,2624.1,2623.3,5.7678]
[1727057546559,1.1257,2624.1,2623.9,3.58888]
[1727057546752,1.1257,2624.1,2623.9,3.2078]
[1727057546961,2.72944498,2624.0,2623.9,3.58888]
[1727057547855,1.1257,2624.1,2623.9,3.2078]
[1727057548051,3.85514498,2624.1,2623.9,3.58888]
[1727057548256,2.72944498,2624.0,2623.9,0.38108]
[1727057548452,2.72944498,2624.0,2623.6,3.2078]
[1727057548656,2.72944498,2623.8,2623.7,0.38111]
[1727057549263,2.72944498,2623.8,2623.6,5.7678]
[1727057549460,2.72944498,2623.8,2623.7,0.38112]
[1727057550055,1.1257,2624.1,2623.6,5.7678]
[1727057550056,0.5773,2624.1,2623.6,5.7678]
[1727057550255,0.5773,2624.1,2623.9,3.2078]
[1727057550663,2.72944498,2624.0,2623.9,3.2078]
[1727057552262,2.72944498,2624.0,2623.9,3.58889]
[1727057552458,2.72944498,2624.0,2623.9,3.2078]
[1727057554159,2.72944498,2624.0,2623.9,0.38109]
[1727057554555,0.5773,2624.1,2623.9,0.38109]
[1727057554556,0.5773,2624.1,2624.0,0.38107]
[1727057554860,0.38097,2624.8,2624.2,0.38103]
[1727057555065,0.38097,2624.8,2623.9,2.56]
[1727057555066,2.72944498,2624.3,2624.1,3.2078]
[1727057555263,2.72944498,2624.3,2624.2,0.38104]
[1727057556266,1.2149,2624.9,2624.7,0.38097]
[1727057556567,0.8038,2624.9,2624.8,2.08]
[1727057556955,3.53324498,2624.9,2624.8,2.08]
[1727057557459,3.53324498,2624.9,2624.6,5.2878]
[1727057557661,2.72944498,2624.7,2624.6,5.2878]
[1727057558364,3.2078,2625.1,2624.6,2.08]
[1727057558566,0.404,2626.4,2625.0,7.3678]
[1727057558866,0.7861,2626.9,2626.3,2.08]
[1727057559058,5.93724498,2626.6,2626.4,3.2078]
[1727057559362,5.93724498,2626.6,2626.5,0.38071]
[1727057559558,5.93724498,2626.5,2626.4,3.58853]
[1727057559755,0.7861,2626.9,2626.4,5.2878]
[1727057559956,5.93724498,2626.6,2626.5,0.3807]
[1727057560161,5.93724498,2626.6,2626.5,3.2078]
[1727057560466,5.93724498,2626.6,2626.5,3.58851]
[1727057560854,5.93724498,2626.6,2626.1,3.2078]
[1727057561054,5.93724498,2626.6,2625.0,1.98058855]
[1727057561055,5.93724498,2626.2,2625.8,3.2078]
[1727057561262,0.38075,2626.3,2625.9,2.08]
[1727057561466,0.3973,2626.5,2625.9,2.08]
[1727057561663,5.93724498,2626.0,2625.8,3.2078]
[1727057561976,0.3973,2626.5,2625.9,2.08]
[1727057561977,5.93724498,2626.1,2625.9,2.08]
[1727057562164,5.93724498,2625.9,2625.8,3.2078]
[1727057563063,0.3973,2626.5,2625.9,0.38079]
[1727057563260,5.93724498,2626.0,2625.8,6.14861]
[1727057563459,5.93724498,2625.9,2625.8,6.14861]
[1727057563970,5.93724498,2625.9,2625.8,5.7678]
[1727057565257,0.3973,2626.5,2625.9,0.38079]
[1727057565457,5.93724498,2626.1,2625.8,2.9408]
[1727057565654,5.93724498,2626.1,2626.0,3.2078]
[1727057565860,0.3973,2626.5,2626.0,3.2078]
[1727057566073,0.3973,2626.5,2626.0,0.38078]
[1727057566074,5.93724498,2626.1,2626.0,0.38078]
[1727057566374,5.93724498,2626.4,2626.3,0.38073]
[1727057566673,0.3915,2626.9,2626.4,0.38073]
[1727057566969,0.3915,2626.9,2626.8,3.2078]
[1727057567355,6.32874498,2626.9,2626.8,3.2078]
[1727057567562,4.15926,2627.5,2626.8,3.2078]
[1727057567563,0.00509605,2627.7,2626.8,5.7678]
[1727057567763,0.00509605,2627.7,2627.5,3.2078]
[1727057568064,5.93724498,2627.6,2627.5,3.58837]
[1727057568265,5.93724498,2627.6,2627.5,3.2078]
[1727057568767,3.11004498,2627.3,2626.7,3.2078]
[1727057568966,2.72944498,2626.7,2626.3,8.4278]
[1727057569264,0.38069,2626.7,2626.4,8.04913373]
[1727057569478,0.3847,2627.2,2626.3,3.2078]
[1727057569479,2.72944498,2626.5,2626.3,3.2078]
[1727057569664,2.72944498,2626.6,2626.5,0.38071]
[1727057570268,3.2078,2627.0,2626.3,5.7678]
[1727057570570,2.72944498,2626.8,2626.3,5.7678]
[1727057570767,3.2078,2627.0,2626.6,2.56]
[1727057570966,0.3847,2627.2,2626.9,0.38064]
[1727057571267,3.11414498,2627.2,2626.6,5.7678]
[1727057571473,2.72944498,2627.0,2626.8,0.38066]
[1727057571767,2.72944498,2627.0,2626.9,0.38065]
[1727057571957,2.72944498,2627.0,2626.8,0.38066]
[1727057572665,2.72944498,2627.0,2626.9,3.2078]
[1727057572864,2.72944498,2627.0,2626.9,3.58845]
[1727057573069,2.72944498,2627.0,2626.9,3.2078]
[1727057573568,2.72944498,2627.0,2626.9,3.58845]
[1727057575867,2.72944498,2627.0,2626.5,3.2078]
[1727057576071,2.72944498,2626.7,2626.6,0.3807]
[1727057576372,2.72944498,2626.7,2626.5,3.5885]
[1727057576768,2.72944498,2626.7,2626.5,3.2078]
[1727057577067,2.72944498,2626.6,2626.5,3.2078]
[1727057577568,2.72944498,2626.6,2626.2,0.38075]
[1727057577569,2.72944498,2626.6,2626.2,3.2078]
[1727057577871,2.72944498,2626.3,2626.2,3.58855]
[1727057578060,2.72944498,2626.3,2626.2,3.2078]
[1727057579671,5.93724498,2626.3,2625.5,3.2078]
[1727057579870,0.95178,2626.6,2625.5,3.2078]
[1727057579871,2.72944498,2625.6,2625.5,0.38086]
[1727057580769,2.72944498,2625.6,2625.2,2.56]
[1727057580980,2.72944498,2625.5,2625.4,0.38087]
[1727057581273,2.99950471,2628.6,2625.4,0.38087]
[1727057581274,2.72944498,2626.0,2625.4,3.2078]
[1727057581475,2.72944498,2626.1,2626.0,0.38078]
[1727057581868,0.3749,2626.7,2626.0,8.11901895]
[1727057582179,2.72944498,2626.5,2626.4,0.38072]
[1727057582472,3.2078,2627.6,2626.4,6.0]
[1727057582667,2.72944498,2627.0,2626.7,0.38068]
[1727057582867,2.72944498,2627.0,2626.6,0.38069]
[1727057583069,2.72944498,2626.9,2626.6,0.38069]
[1727057583271,2.72944498,2626.7,2626.3,11.36753]
[1727057583676,2.72944498,2626.7,2626.4,8.21044713]
[1727057583976,2.72944498,2626.6,2626.4,8.21044713]
[1727057584675,2.72944498,2626.6,2626.4,7.82972713]
[1727057585066,2.72944498,2626.5,2626.4,7.82972713]
[1727057585271,2.72944498,2626.5,2626.1,0.38076]
[1727057585572,2.72944498,2626.3,2626.2,8.30969972]
[1727057585777,3.2078,2626.6,2626.2,7.92894972]